{"text_format":"1","workbook":"xlsx","n_sheets":22,"sheets":["Uvod","Zadatel","Hlavicka_Rocni","Rocni","Harm_Rocni","Rozp_Zam_Rocni","Rozp_Strukt_Rocni","Rozp_Zdroj_Rocni","Hlavicka_Tem","Tematicky","Harm_Tem","Rozp_Zam_Tem","Rozp_Strukt_Tem","Rozp_Zdroj_Tem","Kontrola_Rocni","Hlavicka_Ind","Individualni","Rozp_Zam_Ind","Rozp_Strukt_Ind","Rozp_Zdroj_Ind","Kontrola_Ind","DATA"],"not_rendered":{"charts":0,"images":12,"macros":1,"external_links":0,"defined_names":9,"comments":17,"pivot_tables":0},"unopened":[],"bounds":{"document_bytes":16777216,"sheet_cells":100000,"rows_first":2000,"rows_last":500,"rows_between":2000,"halvings":0,"cell_chars":16384,"cell_head_chars":4096},"cells_cut":0,"cells_raw":0,"read":"whole","date_system":"1900"}

{"sheet":"Uvod","index":0,"n_rows":36,"n_cols":11,"rows_kept":36,"cut":false,"hidden":false,"merged":[[0,0,0,12],[15,2,15,12],[36,1,36,12],[38,1,38,12],[26,1,26,12],[29,1,29,12],[31,1,31,12],[33,1,33,12]]}
["POMOZTE DĚTEM"]
["č. projektu: ",null,null,null,null,null,null,null,null,null,"Individuální projekt 22. ročník"]
[null,"Tento formulář Vás provede přípravou rozpočtu NROS o příspěvek z programu Pomozte dětem - INDIVIDUÁLNÍ PROJEKT."]
[]
["Návod:"]
[null,"Tento formulář slouží k podání INDIVIDUÁLNÍ žádosti"]
[null,"Vyplňte zobrazené listy"]
[null,"Zkontrolujte údaje ve formuláři a formulář vložte jako přílohu k žádosti v systému GRANTYS v sekci soubory.\n"]
[null,"Pole určená k vylpnění jsou označena světle modrou barvou:",null,null,null,null,null,null,"Pole k vyplnění"]
[null,"V buňkách, které jsou v pravém horním rohu označeny červeným trojúhelníčkem, naleznete návodné komentáře."]
[]
[null,"Pole určená k vylpnění jsou označena světle modrou barvou:",null,null,null,null,null,null,"Pole k vyplnění"]
[]
[null,"V buňkách, které jsou v pravém horním rohu označeny červeným trojúhelníčkem, naleznete návodné komentáře."]
["Typ žádosti:",null,"INDIVIDUÁLNÍ projekt"]
[null,null,"6 - 12 měsíční projekt podává nezisková organizace ve prospěch konkrétního dítěte (dětí) v jedné rodině.  Maximálně lze žádat o částku 50 000 Kč. V  příručce jsou definovány cílové skupiny, na které by se projekt měl zaměřit a zároveň musí být splněny podmínky uvedené v Příručce."]
["Pozn. ","Pro akceptování vaší žádosti je nutné, aby do uzávěrky  byla žádost řádně zpracována a odeslána v systému GRANTYS, "]
[null,"kam je vložen tento rozpočet  jako příloha."]
["Technická poznámka k formuláři:"]
["Formulář je zpracován v programu MS Excel. Text v rámci buňky lze členit do odstavců pomocí kláves  Alt+Enter. "]
["Pro správné vyplnění formuláře povolte Makra."]
["U jednotlivých textových polí prosím nepřekračujte povolený počet znaků."]
["Kromě pokynů uvedených přímo ve formuláři je nutné respektovat také Příručku k VŘ  - naleznete na www.pomoztedetem.cz"]
[]
["Souhlasy a prohlášení"]
[null,"Souhlas se zveřejněním projektu"]
[null,"Souhlasím s poskytnutím veškerých informací (vyjma osobních dat) týkajících se projektové žádosti, včetně jejích příloh veřejnosti."]
[]
[null,"Souhlas se zpracováním osobních údajů"]
[null,"Souhlasím se zařazením poskytnutých osobních údajů do grantové databáze Nadace rozvoje občanské společnosti a jejich dalším zpracováním Nadací za účelem vyhodnocení žádosti o nadační příspěvek, a to do odvolání mého souhlasu. Veškerá osobní data budou chráněna v souladu s Nařízením Evropského parlamentu a Rady (EU) 2016/679 ze dne 27. 4. 2016 o ochraně fyzických osob v souvislosti se zpracováním osobních údajů a o volném pohybu těchto údajů a o zrušení směrnice 95/46/ES (obecné nařízení o ochraně osobních údajů). NROS byla zaregistrována na Úřadě pro ochranu osobních údajů pod číslem 00000883/001 dne 14. 2. 2001. \nProhlašuji, že budu při zpracování této žádosti postupovat v souladu s Nařízením Evropského parlamentu a Rady (EU) 2016/679  ze dne 27. 4. 2016 o ochraně fyzických osob v souvislosti se zpracováním osobních údajů a o volném pohybu těchto údajů a o zrušení směrnice 95/46/ES (obecné nařízení o ochraně osobních údajů)."]
[null,"Souhlas s podmínkami programu"]
[null,"Souhlasím s termíny a podmínkami platnými pro veřejné výběrové řízení Pomozte dětem popsaných v Příručce k veřejnému výběrovému řízení sbírkového projektu Pomozte dětem – Individuální projekty."]
[null,"Čestné prohlášení o žadateli"]
[null,"Na majetek žádající NNO nebyl prohlášen konkurz, nebylo potvrzené nucené vyrovnání, eventuálně nebyl zamítnut návrh na prohlášení pro nedostatek majetku. Proti žádající NNO není veden výkon rozhodnutí, není v úpadku nebo v likvidaci dle zákona č. 182/2006 Sb., o úpadku a způsobech jeho řešení (insolvenční zákon). Žádající NNO má splněné veškeré závazky související s úhradou příspěvku zdravotního pojištění, sociálního zabezpečení a daňovými odvody vyplývajícími z právních předpisů"]
[null,"Čestné prohlášení o projektu"]
[null,"Prohlašuji, že všechny informace poskytnuté v projektové žádosti jsou pravdivé. "]

{"sheet":"Zadatel","index":1,"n_rows":49,"n_cols":14,"rows_kept":49,"cut":false,"hidden":true,"merged":[[38,4,38,12],[39,4,39,12],[43,4,43,12],[44,4,44,12],[0,0,0,12],[2,0,2,12],[5,4,5,12],[6,4,6,12],[9,4,9,12],[7,4,7,12],[22,4,22,12],[8,4,8,12],[15,4,15,12],[16,4,16,12],[11,4,11,12],[12,4,12,12],[17,4,17,12],[18,4,18,12],[20,4,20,12],[21,4,21,12],[24,1,24,3],[37,4,37,12],[29,4,29,12],[30,4,30,12],[31,4,31,12],[23,4,23,12],[24,4,24,12],[25,4,25,12],[28,4,28,12],[33,4,33,12],[34,4,34,12],[35,4,35,12],[36,4,36,12]]}
["POMOZTE DĚTEM"]
[]
["Údaje o žadateli"]
[]
["Identifikace organizace"]
["1.","Název organizace"]
["2.","Právní forma",null,null,"spolek"]
["3.","IČ"]
["4.","Bankovní účet",null,null,null,null,null,null,null,null,null,null,null,"VYMAZAT!"]
["4.","Oddíl vložka a datum zápisu"]
[]
["5.","Statutární orgán"]
["6.","Odkaz na výroční zprávu"]
["Aktivity organizace"]
["1.","Hlavní aktivity organizace"]
[null,null,null,"a,"]
[null,null,null,"b,"]
[null,null,null,"c,"]
[null,null,null,"d,"]
["2.","Akreditované činnosti"]
[null,null,null,"a,"]
[null,null,null,"b,"]
[null,null,null,"c,"]
[null,null,null,"d,"]
["3.","Pověření dle zák. 359/99 Sb."]
["4.","Členství v asociaci/střešní org."]
["Kontaktní údaje"]
["1.","Adresa sídla"]
[null,null,"Ulice"]
[null,null,"Číslo popisné/orientační"]
[null,null,"PSČ"]
[null,null,"Město"]
["2.","Poštovní adresa"]
[null,null,"Ulice"]
[null,null,"Číslo popisné/orientační"]
[null,null,"PSČ"]
[null,null,"Město"]
["3.","Telefon"]
["4.","E-mail"]
["5.","Web"]
[]
["Kapacita organizace"]
[]
["1.","Počet zaměstnanců org."]
["2.","Počet dobrovolníků"]
[]
["3.","Vedete podvojné účetnictví"]
[]
[null,null,null,null,null,null,null,null,null,null,null,"Kontrolní součet:",{"$f":"Checksum(E6:M38)+Checksum(E44:E45)+Checksum(E47)","v":654}]

{"sheet":"Hlavicka_Rocni","index":2,"n_rows":37,"n_cols":13,"rows_kept":37,"cut":false,"hidden":true,"merged":[[27,1,27,12],[28,1,28,12],[31,1,31,12],[36,10,36,12],[0,0,0,12],[4,10,4,12],[18,1,18,12],[21,1,21,12],[24,1,24,12],[5,10,5,12],[5,8,5,9]]}
["POMOZTE DĚTEM"]
[null,null,null,null,null,null,null,null,null,null,null,null,"16. ročník"]
["LIST NEVYPLŇOVAT!",null,null,null,null,null,null,null,null,"Druh projektu:",null,null,"Roční"]
[]
[null,null,null,null,null,null,null,null,null,"Číslo projektu NROS:"]
[null,null,null,null,null,null,null,null,"Unikátní kód:",null,{"$f":"Rocni!M52+Harm_Rocni!AC9+Rozp_Zam_Rocni!I21+Rozp_Zam_Rocni!J21","v":0}]
["1.","Název organizace",null,null,{"$f":"Zadatel!E6","v":0}]
["2.","IČ",null,null,{"$f":"Zadatel!E8","v":0}]
["3.","Název projektu",null,null,{"$f":"Rocni!B5","v":0}]
[]
["4.","Kontaktní osoba"]
[null,null,"Jméno osoby",null,{"$f":"Rocni!E11","v":0}]
[null,null,"Telefon",null,{"$f":"Rocni!E13","v":0}]
[null,null,"E-mail",null,{"$f":"Rocni!E14","v":0}]
["5.","Web",null,null,{"$f":"Zadatel!E40","v":0}]
[]
["Souhlasy a prohlášení"]
[null,"Souhlas se zveřejněním projektu"]
[null,"Souhlasím s poskytnutím veškerých informací (vyjma osobních dat) týkajících se projektové žádosti, včetně jejích příloh veřejnosti."]
[]
[null,"Souhlas se zpracováním osobních údajů"]
[null,"Souhlasím se zařazením poskytnutých osobních údajů do grantové databáze Nadace rozvoje občanské společnosti a jejich dalším zpracováním Nadací za účelem vyhodnocení žádosti o nadační příspěvek, a to do odvolání mého souhlasu. Veškerá osobní data budou chráněna v souladu se zněním zákona č. 101/2000 Sb. o ochraně osobních údajů. NROS byla zaregistrována na Úřadě pro ochranu osobních údajů pod číslem 00000883/001 dne 14. 2. 2001."]
[]
[null,"Souhlas s podmínkami programu"]
[null,"Souhlasím s termíny a podmínkami platnými pro veřejné výběrové řízení Pomozte dětem vyhlášené dne 20. května 2014, jež jsou uvedeny v Příručce k veřejnému výběrovému řízení 16. ročníku sbírkového projektu Pomozte dětem."]
[]
[null,"Čestné prohlášení o žadateli"]
[null,"Na majetek žádající NNO nebyl prohlášen konkurz, nebylo potvrzené nucené vyrovnání, eventuálně nebyl zamítnut návrh na prohlášení pro nedostatek majetku. Proti žádající NNO není veden výkon rozhodnutí, není v úpadku nebo v likvidaci dle zákona č. 182/2006 Sb., o úpadku a způsobech jeho řešení (insolvenční zákon)."]
[null,"Žádající NNO má splněné veškeré závazky související s úhradou příspěvku zdravotního pojištění, sociálního zabezpečení a daňovými odvody vyplývajícími z právních předpisů."]
[]
[null,"Čestné prohlášení o projektu"]
[null,"Prohlašuji, že všechny informace poskytnuté v projektové žádosti jsou pravdivé."]
[]
[]
[]
[]
[null,null,null,null,null,null,null,null,null,null,{"$f":"Zadatel!E12","v":0}]

{"sheet":"Rocni","index":3,"n_rows":52,"n_cols":16,"rows_kept":52,"cut":false,"hidden":true,"merged":[[44,1,44,12],[47,1,47,12],[41,2,41,6],[41,8,41,12],[33,1,33,12],[36,2,36,3],[36,4,36,12],[37,2,37,3],[37,4,37,12],[40,2,40,6],[40,8,40,12],[31,1,31,12],[29,4,29,12],[0,0,0,12],[4,1,4,12],[6,1,6,12],[8,1,8,12],[15,4,15,12],[10,4,10,12],[11,4,11,12],[12,4,12,12],[13,4,13,12],[16,4,16,12],[21,4,21,12],[22,4,22,12],[23,4,23,12],[28,4,28,12]]}
["POMOZTE DĚTEM"]
[null,null,null,null,null,null,null,null,null,null,null,"Roční projekt"]
["Identifikace projektu"]
["1.","Název projektu"]
[]
["2.","Anotace projektu",null,null,null,null,null,null,null,null,null,"Počet znaků:",{"$f":"500-LEN(B7)","v":500}]
[]
["3.","Cíl projektu",null,null,null,null,null,null,null,null,null,"Počet znaků:",{"$f":"500-LEN(B9)","v":500}]
[]
["4.","Kontaktní osoba"]
[null,null,"Jméno osoby"]
[null,null,"Pracovní pozice"]
[null,null,"Telefon"]
[null,null,"E-mail"]
["Místo realizace"]
["1.","Region realizace (NUTSII)",null,null,null,null,null,null,null,null,null,null,null,null,"CZ 01 – Praha"]
["2.","Místo realizace (obec)",null,null,null,null,null,null,null,null,null,null,null,null,"CZ 02 – Střední Čechy"]
[null,null,null,null,null,null,null,null,null,null,null,null,null,null,"CZ 03 - Jihozápad (Jihočeský, Plzeňský kraj)"]
["Rozpočet, harmonogram a oblast činnosti projektu",null,null,null,null,null,null,null,null,null,null,null,null,null,"CZ 04 – Severozápad (Ústecký, Karlovarský kraj)"]
["1.","Celkové náklady",null,null,{"$f":"Rozp_Strukt_Rocni!C45","v":0},"Kč",null,null,null,null,null,null,null,null,"CZ 05 - Severovýchod (Liberecký, Královehradecký, Pardubický kraj)"]
["2.","Požadovaná částka",null,null,{"$f":"Rozp_Strukt_Rocni!E45","v":0},"Kč",null,null,null,null,null,null,null,null,"CZ 06 - Jihovýchod (Vysočina, Jihomoravský kraj)"]
["3.","Doba realizace projektu",null,null,null,null,null,null,null,null,null,null,null,null,"CZ 07 - Střední Morava (Olomoucký, Zlínský kraj)"]
["4.","Převažující oblast činnosti",null,null,null,null,null,null,null,null,null,null,null,null,"CZ 08 - Moravskoslezsko (Moravskoslezský kraj)"]
[null,null,"pokud jiné tak"]
["Identifikace cílové skupiny",null,null,null,null,null,null,null,null,null,null,null,null,null,"1.11.2013 - 31.12.2014 14 měsíců"]
["1.","Počet dětí",null,"Věk","0-5","6-10","11-14","15-18","Celkem",null,null,null,null,null,"1.12.2013 - 31.12.2014 13 měsíců"]
[null,null,null,"Počet",null,null,null,null,{"$f":"SUM(E27:H27)","v":0},null,null,null,null,null,"1.1.2014 - 31.12.2014 12 měsíců"]
[]
["2.","Čím jsou děti ohrožené",null,null,null,null,null,null,null,null,null,null,null,null,"osobní asistence OA","výchovnými a vývojovými problémy – VVP"]
[null,null,"pokud JP tak",null,null,null,null,null,null,null,null,null,null,null,"odlehčovací služby OS","životem mimo vlastní rodinu – ŽMR"]
["3.","Charakteristika dětí",null,null,null,null,null,null,null,null,null,"Počet znaků:",{"$f":"500-LEN(B32)","v":500},null,"stacionáře a speciální školní zařízení SŠ","týráním, zneužíváním a zanedbáváním - TZ"]
[null,null,null,null,null,null,null,null,null,null,null,null,null,null,"raná péče RP ","tělesným, duševním nebo smyslovým postižením - ZP"]
["4.","Popis výchozí situace",null,null,null,null,null,null,null,null,null,"Počet znaků:",{"$f":"500-LEN(B34)","v":500},null,"azylové domy AD","drogovou či jinou závislostí - DZ"]
[null,null,null,null,null,null,null,null,null,null,null,null,null,null,"nízkoprahová zařízení pro děti a mládež NZDM","jinými nepříznivými životními podmínkami – JP"]
[null,null,null,null,null,null,null,null,null,null,null,null,null,null,"sociálně terapeutické služby STS"]
["Popis aktivit projektu",null,null,null,null,null,"Počátek projektu:",null,{"$f":"VALUE(LEFT(E22,FIND(\" - \",E22)-1))","v":{"$error":"#VALUE!"}},null,"Konec projektu:",null,{"$f":"VALUE(MID(E22,FIND(\" - \",E22)+3,10))","v":{"$error":"#VALUE!"}},null,"náhradní rodinná péče NRP"]
["Počet znaků","Číslo aktivity","Název aktivity",null,"Popis aktivity",null,null,null,null,null,null,null,null,null,"individuální podpora IP"]
[{"$f":"1000-LEN(E38)","v":1000},1,null,null,null,null,null,null,null,null,null,null,null,null,"jiné"]
[]
["2.","Výstupy a ukazatele úspěchu"]
[null,"Aktivita","Výstup/ukazatel",null,null,null,null,"Počet kusů/ osob/aj","Způsob ověření"]
[null,1]
[]
["11.","Zkušenosti organizace relevantní pro projekt",null,null,null,null,null,null,null,null,null,"Počet znaků:",{"$f":"500-LEN(B45)","v":500}]
[]
["13.","Spoluúčast klientů na službách"]
["14.","Specifikujte, na které služby a kolik si klienti připlácí",null,null,null,null,null,null,null,null,null,"Počet znaků:",{"$f":"500-LEN(B48)","v":500}]
[]
["15.","Žádáte o prostředky ze sbírky Pomozte dětem poprvé? "]
["16.","Zúčastnil se zástupce vaší organizace letošního semináře pro žadatele z veřejné sbírky Pomozte dětem?"]
[]
[null,null,null,null,null,null,null,null,null,null,null,"Kontrolní součet:",{"$f":"Checksum(B5)+Checksum(B7)+Checksum(B9)+Checksum(E16:M17)+Checksum(E22:M24)+Checksum(E27:H27)+Checksum(E29:M30)+Checksum(B32)+Checksum(B34)+Checksum(C38:D38)+Checksum(E38:M38)+Checksum(C42:M42)+Checksum(B45)+Checksum(L46)+Checksum(B48)+Checksum(L49:L50)","v":0}]

{"sheet":"Harm_Rocni","index":4,"n_rows":11,"n_cols":29,"rows_kept":11,"cut":false,"hidden":true,"merged":[[0,0,0,28],[9,1,9,28]]}
["POMOZTE DĚTEM"]
[null,null,null,null,null,null,null,null,null,null,null,null,null,null,null,null,null,null,null,"Roční projekt",null,null,null,null,null,null,null,null,"16. ročník"]
["Název projektu:",null,{"$f":"Rocni!B5","v":0},null,null,null,null,null,null,null,null,null,null,null,null,null,null,null,null,null,null,null,null,null,null,null,null,null,{"$f":"Hlavicka_Rocni!K5","v":0}]
["Organizace:",null,{"$f":"Zadatel!E6","v":0}]
[null,null,null,null,null,null,null,null,null,null,null,null,null,null,"Delete",null,"Smazat",null,null,"P","Příprava aktivity",null,null,null,"R","Realizace aktivity"]
["Harmonogram projektu",null,null,1,2,3,4,5,6,7,8,9,10,11,12,13,14,15,16,17,18,19,20,21,22,23,24,25,26]
[null,"Číslo aktivity","Název aktivity","2014-11-01","2014-12-01","2015-01-01","2015-02-01","2015-03-01","2015-04-01","2015-05-01","2015-06-01","2015-07-01","2015-08-01","2015-09-01","2015-10-01","2015-11-01","2015-12-01","2016-01-01","2016-02-01","2016-03-01","2016-04-01","2016-05-01","2016-06-01","2016-07-01","2016-08-01","2016-09-01","2016-10-01","2016-11-01","2016-12-01"]
[null,1,{"$f":"Rocni!C38","v":0}]
[]
[null,"Aktivity projektu zařaďte do harmonogramu projektu. Harmonogram musí obsahovat především dobu přípravy a trvání jednotlivých činností, které budou prováděny za účelem dosažení cíle projektu. Klikem na buňku se Vám nabídne možnost P - příprava aktivity nebo R - realizace aktivity. Pokud chcete vyplněné pole opravit/změnit použijte Delete."]
[null,null,null,null,null,null,null,null,null,null,null,null,null,null,null,null,null,null,null,null,null,null,null,null,"Kontrolní součet:",null,null,null,{"$f":"Checksum(D8:AC8)","v":0}]

{"sheet":"Rozp_Zam_Rocni","index":5,"n_rows":21,"n_cols":11,"rows_kept":21,"cut":false,"hidden":true,"merged":[[0,0,0,10],[3,3,3,10],[4,3,4,10],[5,3,5,10]]}
["POMOZTE DĚTEM"]
["Rozpočet - Zaměstnanci"]
[]
[null,null,"Číslo projektu:",{"$f":"Hlavicka_Rocni!K5","v":0}]
[null,null,"Název projektu:",{"$f":"Rocni!B5","v":0}]
[null,null,"Název organizace:",{"$f":"Zadatel!E6","v":0}]
[]
["Zaměstnanci na pracovní poměr:"]
["ID","Pozice v projektovém týmu","Jméno a příjmení","Dosaž. vzdělání","Doba odborné praxe (počet let)","Měsíční hrubá mzda\npro plný úvazek","Měsíční superhrubá mzda\npro plný úvazek","Úvazek na projektu","Počet měsíců v projektu","Mzdové náklady vztahující se k projektu","Požadavek na financování z nadačního příspěvku"]
[1,null,null,null,null,null,null,null,null,{"$f":"ROUND(G10*H10*I10,0)","v":0}]
[]
["Zaměstnanci na DPČ:"]
["ID","Pozice v projektovém týmu","Jméno a příjmení","Dosaž. vzdělání","Doba odborné praxe (počet let)","Měsíční hrubá mzda\npro plný úvazek","Měsíční superhrubá mzda\npro plný úvazek","Úvazek na projektu","Počet měsíců v projektu","Mzdové náklady vztahující se k projektu","Požadavek na financování z nadačního příspěvku"]
[1,null,null,null,null,null,null,null,null,{"$f":"ROUND(G14*H14*I14,0)","v":0}]
[]
["Zaměstnanci na DPP:"]
["ID","Pozice v projektovém týmu","Jméno a příjmení","Dosaž. vzdělání","Doba odborné praxe (počet let)","Hodinová sazba","Počet hodin v projektu","Případné odvody",null,"Mzdové náklady vztahující se k projektu","Požadavek na financování z nadačního příspěvku"]
[1,null,null,null,null,null,null,null,null,{"$f":"ROUND((F18*G18)+H18,0)","v":0}]
[]
[]
[null,null,null,null,null,null,null,"Kontrolní součet:",null,{"$f":"SUM(J9:J19)","v":0},{"$f":"SUM(K9:K19)","v":0}]

{"sheet":"Rozp_Strukt_Rocni","index":6,"n_rows":45,"n_cols":7,"rows_kept":45,"cut":false,"hidden":true,"merged":[[0,0,0,4],[3,2,3,4],[4,2,4,4],[5,2,5,4]]}
["POMOZTE DĚTEM"]
["Rozpočet - Struktura"]
[]
[null,"Číslo projektu:",{"$f":"Hlavicka_Rocni!K5","v":0}]
[null,"Název projektu:",{"$f":"Rocni!B5","v":0}]
[null,"Název organizace:",{"$f":"Zadatel!E6","v":0}]
[]
["Číslo položky","PROJEKTOVÉ NÁKLADY","Výše projektových nákladů","Komentář","Požadavek na financování z nadačního příspěvku"]
["Kapitola 1. MZDOVÉ NÁKLADY"]
["1. 1.",{"$f":"Rozp_Zam_Rocni!B10 & \" (\" & Rozp_Zam_Rocni!C10 & \")\"","v":" ()"},{"$f":"Rozp_Zam_Rocni!J10","v":0},{"$f":" \"PP; úvazek: \" & Rozp_Zam_Rocni!H10 & \"; doba: \" & Rozp_Zam_Rocni!I10 & \" měs.\"","v":"PP; úvazek: ; doba:  měs."},{"$f":"Rozp_Zam_Rocni!K10","v":0},null,{"$f":"IF(E10>C10,\"Hodnota v sloupci E nesmí být vyšší než hodnota v sloupci C\",\"\")","v":""}]
["1. 2.",{"$f":"Rozp_Zam_Rocni!B14 & \" (\" & Rozp_Zam_Rocni!C14 & \")\"","v":" ()"},{"$f":"Rozp_Zam_Rocni!J14","v":0},{"$f":" \"DPČ; úvazek: \" & Rozp_Zam_Rocni!H14 & \"; doba: \" & Rozp_Zam_Rocni!I14 & \" měs.\"","v":"DPČ; úvazek: ; doba:  měs."},{"$f":"Rozp_Zam_Rocni!K14","v":0},null,{"$f":"IF(E11>C11,\"Hodnota v sloupci E nesmí být vyšší než hodnota v sloupci C\",\"\")","v":""}]
["1. 3.",{"$f":"Rozp_Zam_Rocni!B18 & \" (\" & Rozp_Zam_Rocni!C18 & \")\"","v":" ()"},{"$f":"Rozp_Zam_Rocni!J18","v":0},{"$f":" \"DPP; počet hodin: \" & Rozp_Zam_Rocni!G18","v":"DPP; počet hodin: "},{"$f":"Rozp_Zam_Rocni!K18","v":0},null,{"$f":"IF(E12>C12,\"Hodnota v sloupci E nesmí být vyšší než hodnota v sloupci C\",\"\")","v":""}]
["1. 4."]
[null,"Součet Kapitola 1.",{"$f":"SUM(C10:C13)","v":0},null,{"$f":"SUM(E10:E13)","v":0}]
[]
["Kapitola 2. VYBAVENÍ A SPOTŘEBNÍ MATERIÁL"]
["2.1.",null,null,null,null,null,{"$f":"IF(E17>C17,\"Hodnota v sloupci E nesmí být vyšší než hodnota v sloupci C\",\"\")","v":""}]
[]
[null,"Součet Kapitola 2.",{"$f":"SUM(C17:C18)","v":0},null,{"$f":"SUM(E17:E18)","v":0}]
[]
["Kapitola 3. CESTOVNÉ - ZAMĚSTNANCI"]
["3.1.",null,null,null,null,null,{"$f":"IF(E22>C22,\"Hodnota v sloupci E nesmí být vyšší než hodnota v sloupci C\",\"\")","v":""}]
[]
[null,"Součet Kapitola 3.",{"$f":"SUM(C22:C23)","v":0},null,{"$f":"SUM(E22:E23)","v":0}]
[]
["Kapitola 4. SLUŽBY PRO CÍLOVÉ SKUPINY"]
["4.1.",null,null,null,null,null,{"$f":"IF(E27>C27,\"Hodnota v sloupci E nesmí být vyšší než hodnota v sloupci C\",\"\")","v":""}]
[]
[null,"Součet Kapitola 4.",{"$f":"SUM(C27:C28)","v":0},null,{"$f":"SUM(E27:E28)","v":0}]
[]
["Kapitola 5. OSTATNÍ SLUŽBY"]
["5.1.",null,null,null,null,null,{"$f":"IF(E32>C32,\"Hodnota v sloupci E nesmí být vyšší než hodnota v sloupci C\",\"\")","v":""}]
[]
[null,"Součet Kapitola 5.",{"$f":"SUM(C32:C33)","v":0},null,{"$f":"SUM(E32:E33)","v":0}]
[]
["Kapitola 6. INVESTIČNÍ NÁKLADY - pořízení nebo zhodnocení dlouhodobého majetku"]
["6.1.",null,null,null,null,null,{"$f":"IF(E37>C37,\"Hodnota v sloupci E nesmí být vyšší než hodnota v sloupci C\",\"\")","v":""}]
[]
[null,"Součet Kapitola 6.",{"$f":"SUM(C37:C38)","v":0},null,{"$f":"SUM(E37:E38)","v":0}]
[]
[null,"Mezisoučet - Přímé projektové náklady",{"$f":"C14+C19+C24+C29+C34+C39","v":0},null,{"$f":"E14+E19+E24+E29+E34+E39","v":0}]
[]
["Kapitola 7. NEPŘÍMÉ PROJEKTOVÉ NÁKLADY",null,null,null,null,null,{"$f":"IF(E43>C43,\"Hodnota v sloupci E nesmí být vyšší než hodnota v sloupci C\",\"\")","v":""}]
[]
["CELKOVÉ PROJEKTOVÉ NÁKLADY",null,{"$f":"ROUND(C41+C43,0)","v":0},null,{"$f":"ROUND(E41+E43,0)","v":0}]

{"sheet":"Rozp_Zdroj_Rocni","index":7,"n_rows":31,"n_cols":5,"rows_kept":31,"cut":false,"hidden":true,"merged":[[28,0,28,4],[29,0,29,4],[30,0,30,4],[0,0,0,4],[3,1,3,4],[4,1,4,4],[5,1,5,4]]}
["POMOZTE DĚTEM"]
["Rozpočet - Zdroje"]
[]
["Číslo projektu:",{"$f":"Hlavicka_Rocni!K5","v":0}]
["Název projektu:",{"$f":"Rocni!B5","v":0}]
["Název organizace:",{"$f":"Zadatel!E6","v":0}]
[]
["                                                ZDROJE FINANCOVÁNÍ PROJEKTOVÝCH NÁKLADŮ",null,null,"Suma","%"]
["Nadační příspěvek NROS - Pomozte dětem",null,null,{"$f":"Rozp_Strukt_Rocni!E45","v":0},{"$f":"IF($D$24=0, ,D9/$D$24)","v":0}]
["Jiné příspěvky od donátorů",null,null,{"$f":"SUM(D12:D21)","v":0},{"$f":"IF($D$24=0, ,D10/$D$24)","v":0}]
["Poskytovatel","Typ příspěvku","Stav žádosti"]
[]
[]
[]
[]
[]
[]
[]
[]
[]
[]
["Vlastní prostředky žadatele",null,null,null,{"$f":"IF($D$24=0, ,D22/$D$24)","v":0}]
["Přímé výnosy projektu",null,null,null,{"$f":"IF($D$24=0, ,D23/$D$24)","v":0}]
["CELKOVÉ ZDROJE",null,null,{"$f":"D9+D10+D22+D23","v":0}]
[]
[]
[]
["Stav žádosti\nzvolte jednu z možností (A, B nebo C):"]
["A - žádost byla schválená (použijte v případě, že donátor již danou žádost schválil)"]
["B - žádost byla podána (použijte v případě, že danou žádost jste již podali, ale výsledek vám dosud není znám)\n"]
["C - žádost bude podána (použijte v případě, že danou žádost plánujete podat v čase relevantním k období realizace projektu)"]

{"sheet":"Hlavicka_Tem","index":8,"n_rows":37,"n_cols":13,"rows_kept":37,"cut":false,"hidden":true,"merged":[[36,10,36,12],[0,0,0,12],[4,10,4,12],[18,1,18,12],[21,1,21,12],[24,1,24,12],[27,1,27,12],[5,10,5,12],[5,8,5,9],[28,1,28,12],[31,1,31,12]]}
["POMOZTE DĚTEM"]
[null,null,null,null,null,null,null,null,null,null,null,null,"14. ročník"]
["LIST NEVYPLŇOVAT!",null,null,null,null,null,null,null,null,"Druh projektu:",null,null,"Tematický"]
[]
[null,null,null,null,null,null,null,null,null,"Číslo projektu NROS:"]
[null,null,null,null,null,null,null,null,"Unikátní kód:",null,{"$f":"Tematicky!M105+Harm_Tem!AC30+Rozp_Zam_Tem!I48+Rozp_Zam_Tem!J48","v":11985}]
["1.","Název organizace",null,null,{"$f":"Zadatel!E6","v":0}]
["2.","IČ",null,null,{"$f":"Zadatel!E8","v":0}]
["3.","Název projektu",null,null,{"$f":"Tematicky!B5","v":0}]
[]
["4.","Kontaktní osoba"]
[null,null,"Jméno osoby",null,{"$f":"Tematicky!E13","v":0}]
[null,null,"Telefon",null,{"$f":"Tematicky!E15","v":0}]
[null,null,"E-mail",null,{"$f":"Tematicky!E16","v":0}]
["5.","Web",null,null,{"$f":"Zadatel!E38","v":0}]
[]
["Souhlasy a prohlášení"]
[null,"Souhlas se zveřejněním projektu"]
[null,"Souhlasím s poskytnutím veškerých informací (vyjma osobních dat) týkajících se projektové žádosti, včetně jejích příloh veřejnosti."]
[]
[null,"Souhlas se zpracováním osobních údajů"]
[null,"Souhlasím se zařazením poskytnutých osobních údajů do grantové databáze Nadace rozvoje občanské společnosti a jejich dalším zpracováním Nadací za účelem vyhodnocení žádosti o nadační příspěvek, a to do odvolání mého souhlasu. Veškerá osobní data budou chráněna v souladu se zněním zákona č. 101/2000 Sb. o ochraně osobních údajů. NROS byla zaregistrována na Úřadě pro ochranu osobních údajů pod číslem 00000883/001 dne 14. 2. 2001."]
[]
[null,"Souhlas s podmínkami programu"]
[null,"Souhlasím s termíny a podmínkami platnými pro veřejné výběrové řízení Pomozte dětem! vyhlášené dne 17. května 2011, jež jsou uvedeny v Příručce k veřejnému výběrovému řízení 13. ročníku sbírkového projektu Pomozte dětem!"]
[]
[null,"Čestné prohlášení o žadateli"]
[null,"Na majetek žádající NNO nebyl prohlášen konkurz, nebylo potvrzené nucené vyrovnání, eventuálně nebyl zamítnut návrh na prohlášení pro nedostatek majetku. Proti žádající NNO není veden výkon rozhodnutí, není v úpadku nebo v likvidaci dle zákona č. 182/2006 Sb., o úpadku a způsobech jeho řešení (insolvenční zákon)."]
[null,"Žádající NNO má splněné veškeré závazky související s úhradou příspěvku zdravotního pojištění, sociálního zabezpečení nebo daňovými odvody vyplývajícími z právních předpisů."]
[]
[null,"Čestné prohlášení o projektu"]
[null,"Prohlašuji, že všechny informace poskytnuté v projektové žádosti jsou pravdivé."]
[]
[]
[]
[]
[null,null,null,null,null,null,null,null,null,null,{"$f":"Zadatel!E12","v":0}]

{"sheet":"Tematicky","index":9,"n_rows":105,"n_cols":15,"rows_kept":105,"cut":false,"hidden":true,"merged":[[96,1,96,12],[83,8,83,12],[84,2,84,6],[84,8,84,12],[85,2,85,6],[88,1,88,12],[94,1,94,12],[100,1,100,12],[80,2,80,6],[80,8,80,12],[81,2,81,6],[81,8,81,12],[82,2,82,6],[82,8,82,12],[85,8,85,12],[98,1,98,12],[83,2,83,6],[77,2,77,6],[77,8,77,12],[78,2,78,6],[78,8,78,12],[79,2,79,6],[79,8,79,12],[74,2,74,6],[74,8,74,12],[75,2,75,6],[75,8,75,12],[76,2,76,6],[76,8,76,12],[37,4,37,12],[42,2,42,3],[42,4,42,12],[47,2,47,3],[71,2,71,6],[71,8,71,12],[72,2,72,6],[72,8,72,12],[73,2,73,6],[73,8,73,12],[68,2,68,6],[68,8,68,12],[69,2,69,6],[69,8,69,12],[70,2,70,6],[70,8,70,12],[67,2,67,6],[67,8,67,12],[65,2,65,6],[65,8,65,12],[66,2,66,6],[66,8,66,12],[55,2,55,3],[55,4,55,12],[0,0,0,12],[4,1,4,12],[6,1,6,12],[8,1,8,12],[10,1,10,12],[34,1,34,12],[12,4,12,12],[13,4,13,12],[14,4,14,12],[15,4,15,12],[32,1,32,12],[30,4,30,12],[17,4,17,12],[18,4,18,12],[23,4,23,12],[29,4,29,12],[46,2,46,3],[46,4,46,12],[39,1,39,12],[48,2,48,3],[48,4,48,12],[43,2,43,3],[43,4,43,12],[44,2,44,3],[44,4,44,12],[45,2,45,3],[45,4,45,12],[47,4,47,12],[49,2,49,3],[49,4,49,12],[50,2,50,3],[50,4,50,12],[51,2,51,3],[51,4,51,12],[52,2,52,3],[52,4,52,12],[53,2,53,3],[53,4,53,12],[54,2,54,3],[54,4,54,12],[62,4,62,12],[58,4,58,12],[59,2,59,3],[59,4,59,12],[60,2,60,3],[60,4,60,12],[58,2,58,3],[56,2,56,3],[56,4,56,12],[57,2,57,3],[57,4,57,12],[61,2,61,3],[61,4,61,12],[62,2,62,3]]}
["POMOZTE DĚTEM!"]
[null,null,null,null,null,null,null,null,null,null,"Tematický projekt"]
["Identifikace projektu"]
["1.","Název projektu"]
[]
["2.","Anotace projektu",null,null,null,null,null,null,null,null,null,"Počet znaků:",{"$f":"LEN(B7)","v":0}]
[]
["3.","Cíl projektu",null,null,null,null,null,null,null,null,null,"Počet znaků:",{"$f":"LEN(B9)","v":0}]
[]
["4.","Vztah projektu k vybranému tématu",null,null,null,null,null,null,null,null,null,"Počet znaků:",{"$f":"LEN(B11)","v":0}]
[null,null,null,null,null,null,null,null,null,null,null,null,null,null,"CZ 01 – Praha"]
["5.","Kontaktní osoba",null,null,null,null,null,null,null,null,null,null,null,null,"CZ 02 – Střední Čechy"]
[null,null,"Jméno osoby",null,null,null,null,null,null,null,null,null,null,null,"CZ 03 - Jihozápad (Jihočeský, Plzeňský kraj)"]
[null,null,"Pracovní pozice",null,null,null,null,null,null,null,null,null,null,null,"CZ 04 – Severozápad (Ústecký, Karlovarský kraj)"]
[null,null,"Telefon",null,null,null,null,null,null,null,null,null,null,null,"CZ 05 - Severovýchod (Liberecký, Královehradecký, Pardubický kraj)"]
[null,null,"E-mail",null,null,null,null,null,null,null,null,null,null,null,"CZ 06 - Jihovýchod (Vysočina, Jihomoravský kraj)"]
["Místo realizace",null,null,null,null,null,null,null,null,null,null,null,null,null,"CZ 07 - Střední Morava (Olomoucký, Zlínský kraj)"]
["1.","Region realizace (NUTS II)",null,null,"CZ 03 - Jihozápad (Jihočeský, Plzeňský kraj)",null,null,null,null,null,null,null,null,null,"CZ 08 - Moravskoslezsko (Moravskoslezský kraj)"]
["2.","Místo realizace (obec)"]
[null,null,null,null,null,null,null,null,null,null,null,null,null,null,"1.11.2011 - 31.12.2013"]
["Rozpočet, harmonogram a oblast projektu",null,null,null,null,null,null,null,null,null,null,null,null,null,"1.12.2011 - 31.12.2013"]
["1.","Celkové náklady",null,null,{"$f":"Rozp_Strukt_Tem!B49","v":0},"Kč","Nevyplňujte",null,null,null,null,null,null,null,"1.1.2012 - 31.12.2013"]
["2.","Požadovaná částka",null,null,{"$f":"Rozp_Strukt_Tem!D49","v":0},"Kč",{"$f":"IF(E23=0,\" \",IF(OR(E23>1000000,E23<500000),\"Částka nesplňuje povolený limit !!!\",\"\"))","v":" "}]
["3.","Doba realizace projektu",null,null,"1.1.2012 - 31.12.2013",null,null,null,null,null,null,null,null,null,"výchovnými a vývojovými problémy – VVP"]
[null,null,null,null,null,null,null,null,null,null,null,null,null,null,"životem mimo vlastní rodinu – ŽMR"]
["Identifikace cílové skupiny",null,null,null,null,null,null,null,null,null,null,null,null,null,"týráním, zneužíváním a zanedbáváním - TZ"]
["1.","Počet dětí",null,"Věk","0-5","6-10","11-14","15-18","Celkem",null,null,null,null,null,"tělesným, duševním nebo smyslovým postižením - ZP"]
[null,null,null,"Počet",null,null,null,null,{"$f":"SUM(E28:H28)","v":0},null,null,null,null,null,"drogovou či jinou závislostí - DZ"]
[null,null,null,null,null,null,null,null,null,null,null,null,null,null,"jinými nepříznivými životními podmínkami – JP"]
["2.","Čím jsou děti ohrožené",null,null,"výchovnými a vývojovými problémy – VVP"]
[null,null,"pokud jiné tak"]
["3.","Charakteristika dětí",null,null,null,null,null,null,null,null,null,"Počet znaků:",{"$f":"LEN(B33)","v":0}]
[]
["4.","Popis výchozí situace",null,null,null,null,null,null,null,null,null,"Počet znaků:",{"$f":"LEN(B35)","v":0}]
[]
["5.","Máte registrovanou službu Krizová pomoc?",null,null,null,null,null,null,null,null,null,"Ne"]
["Pokud nemáte registrovanou službu Krizová pomoc musíte mít Garanta projektu"]
["6.","Garant projektu"]
["7.","Způsob zapojení garanta",null,null,null,null,null,null,null,null,null,"Počet znaků:",{"$f":"LEN(B40)","v":0}]
[]
[]
["Popis aktivit projektu",null,null,null,null,null,"Počátek projektu:",null,{"$f":"VALUE(LEFT(E24,FIND(\" - \",E24)-1))","v":"2012-01-01"},null,"Konec projektu:",null,{"$f":"VALUE(MID(E24,FIND(\" - \",E24)+3,10))","v":"2013-12-31"}]
["1.","Číslo aktivity","Název aktivity",null,"Popis aktivity"]
[null,"1."]
[null,"2."]
[null,"3."]
[null,"4."]
[null,"5."]
[null,"6."]
[null,"7."]
[null,"8."]
[null,"9."]
[null,"10."]
[null,"11."]
[null,"12."]
[null,"13."]
[null,"14."]
[null,"15."]
[null,"16."]
[null,"17."]
[null,"18."]
[null,"19."]
[null,"20."]
[null,null,null,null,null,null,null,null,null,null,null,"Počet znaků:",{"$f":"LEN(E44)+LEN(E45)+LEN(E46)+LEN(E47)+LEN(E48)+LEN(E49)+LEN(E50)+LEN(E51)+LEN(E52)+LEN(E53)+LEN(E54)+LEN(E55)+LEN(E56)+LEN(E57)+LEN(E58)+LEN(E59)+LEN(E60)+LEN(E61)+LEN(E62)+LEN(E63)","v":0}]
["2.","Výstupy a ukazatele úspěchu"]
[null,"Aktivita","Ukazatel",null,null,null,null,"Počet kusů/ osob","Způsob ověření"]
[null,"1."]
[null,"2."]
[null,"3."]
[null,"4."]
[null,"5."]
[null,"6."]
[null,"7."]
[null,"8."]
[null,"9."]
[null,"10."]
[null,"11."]
[null,"12."]
[null,"13."]
[null,"14."]
[null,"15."]
[null,"16."]
[null,"17."]
[null,"18."]
[null,"19."]
[null,"20."]
[]
["3.","Metodologie",null,null,null,null,null,null,null,null,null,"Počet znaků:",{"$f":"LEN(B89)","v":0}]
[]
[]
["5.","Počet dětí, kterým bude v rámci projektu poskytnuta krizová pomoc"]
["6.","Plánovaný počet pracovníků proškolených v krizové pomoci dětem"]
["7.","Počet nově vytvořených krizových lůžek"]
["8.","Pokud plánujete propagaci služby krizové pomoci v rámci projektu popište ji",null,null,null,null,null,null,null,null,null,"Počet znaků:",{"$f":"LEN(B95)","v":0}]
[]
["9.","Pokud bude pracovníkům poskytujícím KP zajištěna supervize, uveďte její rozsah a kdo ji bude zajišťovat",null,null,null,null,null,null,null,null,null,"Počet znaků:",{"$f":"LEN(B97)","v":0}]
[]
["10.","Udržitelnost",null,null,null,null,null,null,null,null,null,"Počet znaků:",{"$f":"LEN(B99)","v":0}]
[]
["11.","Zkušenosti organizace relevantní pro projekt",null,null,null,null,null,null,null,null,null,"Počet znaků:",{"$f":"LEN(B101)","v":0}]
[]
["13.","Žádáte o prostředky ze sbírky Pomozte dětem poprvé? ",null,null,null,null,null,null,null,null,null,"Ano"]
["14.","Zúčastnil se zástupce vaší organizace letošního semináře pro žadatele z veřejné sbírky Pomozte dětem?",null,null,null,null,null,null,null,null,null,"Ano"]
[]
[null,null,null,null,null,null,null,null,null,null,null,"Kontrolní součet:",{"$f":"Checksum(B5)+Checksum(B7)+Checksum(B9)+Checksum(B11)+Checksum(E18:M19)+Checksum(E22:E23)+Checksum(E24:M24)+Checksum(E28:H28)+Checksum(E30:M31)+Checksum(B33)+Checksum(B35)+Checksum(C67:M86)+Checksum(B89)+Checksum(J91:J93)+Checksum(B95)+Checksum(B97)+Checksum(B99)+Checksum(B101)+Checksum(L102:L103)+Checksum(E13:M16)+Checksum(E38:M40)+Checksum(C44:M63)","v":11985}]

{"sheet":"Harm_Tem","index":10,"n_rows":30,"n_cols":29,"rows_kept":30,"cut":false,"hidden":true,"merged":[[0,0,0,28],[28,1,28,28]]}
["POMOZTE DĚTEM!"]
[null,null,null,null,null,null,null,null,null,null,null,null,null,null,null,null,null,null,null,null,null,"Tematický projekt",null,null,null,null,null,null,"13. ročník"]
["Název projektu:",null,{"$f":"Tematicky!B5","v":0},null,null,null,null,null,null,null,null,null,null,null,null,null,null,null,null,null,null,null,null,null,null,null,null,null,{"$f":"Hlavicka_Tem!K5","v":0}]
["Organizace:",null,{"$f":"Zadatel!E6","v":0}]
[null,null,null,null,null,null,null,null,null,null,null,null,null,null,"Deleate",null,"Smazat",null,null,"P","Příprava aktivity",null,null,null,"R","Realizace aktivity"]
["Harmonogram projektu",null,null,1,2,3,4,5,6,7,8,9,10,11,12,13,14,15,16,17,18,19,20,21,22,23,24,25,26]
[null,"Číslo aktivity","Název aktivity","2011-11-01","2011-12-01","2012-01-01","2012-02-01","2012-03-01","2012-04-01","2012-05-01","2012-06-01","2012-07-01","2012-08-01","2012-09-01","2012-10-01","2012-11-01","2012-12-01","2013-01-01","2013-02-01","2013-03-01","2013-04-01","2013-05-01","2013-06-01","2013-07-01","2013-08-01","2013-09-01","2013-10-01","2013-11-01","2013-12-01"]
[null,"1.",{"$f":"Tematicky!C44","v":0}]
[null,"2.",{"$f":"Tematicky!C45","v":0}]
[null,"3.",{"$f":"Tematicky!C46","v":0}]
[null,"4.",{"$f":"Tematicky!C47","v":0}]
[null,"5.",{"$f":"Tematicky!C48","v":0}]
[null,"6.",{"$f":"Tematicky!C49","v":0}]
[null,"7.",{"$f":"Tematicky!C50","v":0}]
[null,"8.",{"$f":"Tematicky!C51","v":0}]
[null,"9.",{"$f":"Tematicky!C52","v":0}]
[null,"10.",{"$f":"Tematicky!C53","v":0}]
[null,"11.",{"$f":"Tematicky!C54","v":0}]
[null,"12.",{"$f":"Tematicky!C55","v":0}]
[null,"13.",{"$f":"Tematicky!C56","v":0}]
[null,"14.",{"$f":"Tematicky!C57","v":0}]
[null,"15.",{"$f":"Tematicky!C58","v":0}]
[null,"16.",{"$f":"Tematicky!C59","v":0}]
[null,"17.",{"$f":"Tematicky!C60","v":0}]
[null,"18.",{"$f":"Tematicky!C61","v":0}]
[null,"19.",{"$f":"Tematicky!C62","v":0}]
[null,"20.",{"$f":"Tematicky!C63","v":0}]
[]
[null,"Aktivity projektu zařaďte do harmonogramu projektu. Harmonogram musí obsahovat především dobu přípravy a trvání jednotlivých činností, které budou prováděny za účelem dosažení cíle projektu. Klikem na buňku se Vám nabídne možnost P - příprava aktivity nebo R - realizace aktivity. Pokud chcete vyplněné pole opravit/změnit použijte Deleate."]
[null,null,null,null,null,null,null,null,null,null,null,null,null,null,null,null,null,null,null,null,null,null,null,null,"Kontrolní součet:",null,null,null,{"$f":"Checksum(D8:AC27)","v":0}]

{"sheet":"Rozp_Zam_Tem","index":11,"n_rows":48,"n_cols":10,"rows_kept":48,"cut":false,"hidden":true,"merged":[[0,0,0,9]]}
["POMOZTE DĚTEM!"]
["Rozpočet - Zaměstnanci"]
[]
[null,null,"Číslo projektu:",{"$f":"Hlavicka_Tem!K5","v":0}]
[null,null,"Název projektu:",{"$f":"Tematicky!B5","v":0}]
[null,null,"Název organizace:",{"$f":"Zadatel!E6","v":0}]
[]
["Zaměstnanci na pracovní poměr:"]
[null,"Jméno a příjmení","Pozice v projektovém týmu","Dosaž. vzdělání","Doba odborné praxe (počet let)","Měsíční superhrubá mzda\npro plný úvazek","Úvazek na projektu","Počet měsíců v projektu","Mzdové náklady vztahující se k projektu","Požadavek na financování z nadačního příspěvku"]
[1,null,null,null,null,null,null,null,{"$f":"ROUND(F10*G10*H10,0)","v":0}]
[2,null,null,null,null,null,null,null,{"$f":"ROUND(F11*G11*H11,0)","v":0}]
[3,null,null,null,null,null,null,null,0]
[4,null,null,null,null,null,null,null,0]
[5,null,null,null,null,null,null,null,0]
[6,null,null,null,null,null,null,null,0]
[7,null,null,null,null,null,null,null,0]
[8,null,null,null,null,null,null,null,0]
[9,null,null,null,null,null,null,null,0]
[10,null,null,null,null,null,null,null,0]
[]
["Zaměstnanci na DPČ:"]
[null,"Jméno a příjmení","Pozice v projektovém týmu","Dosaž. vzdělání","Doba odborné praxe (počet let)","Měsíční superhrubá mzda\npro plný úvazek","Úvazek na projektu","Počet měsíců v projektu","Mzdové náklady vztahující se k projektu","Požadavek na financování z nadačního příspěvku"]
[1,null,null,null,null,null,null,null,{"$f":"ROUND(F23*G23*H23,0)","v":0}]
[2,null,null,null,null,null,null,null,{"$f":"ROUND(F24*G24*H24,0)","v":0}]
[3,null,null,null,null,null,null,null,0]
[4,null,null,null,null,null,null,null,0]
[5,null,null,null,null,null,null,null,0]
[6,null,null,null,null,null,null,null,0]
[7,null,null,null,null,null,null,null,0]
[8,null,null,null,null,null,null,null,0]
[9,null,null,null,null,null,null,null,0]
[10,null,null,null,null,null,null,null,0]
[]
["Zaměstnanci na DPP:"]
[null,"Jméno a příjmení","Pozice v projektovém týmu","Dosaž. vzdělání","Doba odborné praxe (počet let)","Hodinová sazba","Počet hodin v projektu",null,"Mzdové náklady vztahující se k projektu","Požadavek na financování z nadačního příspěvku"]
[1,null,null,null,null,null,null,null,{"$f":"ROUND(F36*G36,0)","v":0}]
[2,null,null,null,null,null,null,null,{"$f":"ROUND(F37*G37,0)","v":0}]
[3,null,null,null,null,null,null,null,0]
[4,null,null,null,null,null,null,null,0]
[5,null,null,null,null,null,null,null,0]
[6,null,null,null,null,null,null,null,0]
[7,null,null,null,null,null,null,null,0]
[8,null,null,null,null,null,null,null,0]
[9,null,null,null,null,null,null,null,0]
[10,null,null,null,null,null,null,null,0]
[]
[]
[null,null,null,null,null,null,null,"Kontrolní součet:",{"$f":"SUM(I10:I19)+SUM(I23:I32)+SUM(I36:I45)","v":0},{"$f":"SUM(J10:J19)+SUM(J23:J32)+SUM(J36:J45)","v":0}]

{"sheet":"Rozp_Strukt_Tem","index":12,"n_rows":50,"n_cols":4,"rows_kept":50,"cut":false,"hidden":true,"merged":[[0,0,0,3]]}
["POMOZTE DĚTEM!"]
["Rozpočet - Struktura"]
[]
["Číslo projektu:",{"$f":"Rozp_Zam_Tem!D4","v":0}]
["Název projektu:",{"$f":"Rozp_Zam_Tem!D5","v":0}]
["Název organizace:",{"$f":"Rozp_Zam_Tem!D6","v":0}]
[]
["PROJEKTOVÉ NÁKLADY","Výše projektových nákladů","Komentář","Požadavek na financování z nadačního příspěvku"]
["Kapitola 1. MZDOVÉ NÁKLADY"]
["1.1."]
["1.2."]
["1.3."]
["Součet Kapitola 1.",{"$f":"SUM(B10:B12)","v":0},null,{"$f":"SUM(D10:D12)","v":0}]
[]
["Kapitola 2. VYBAVENÍ A SPOTŘEBNÍ MATERIÁL"]
["2.1."]
["2.2."]
["2.3."]
["Součet Kapitola 2.",{"$f":"SUM(B16:B18)","v":0},null,{"$f":"SUM(D16:D18)","v":0}]
[]
["Kapitola 3. CESTOVNÉ - ZAMĚSTNANCI"]
["3.1."]
["3.2."]
["3.3."]
["Součet Kapitola 3.",{"$f":"SUM(B22:B24)","v":0},null,{"$f":"SUM(D22:D24)","v":0}]
[]
["Kapitola 4. SLUŽBY PRO CÍLOVÉ SKUPINY"]
["4.1."]
["4.2."]
["4.3."]
["Součet Kapitola 4.",{"$f":"SUM(B28:B30)","v":0},null,{"$f":"SUM(D28:D30)","v":0}]
[]
["Kapitola 5. OSTATNÍ SLUŽBY"]
["5.1."]
["5.2."]
["5.3."]
["Součet Kapitola 5.",{"$f":"SUM(B34:B36)","v":0},null,{"$f":"SUM(D34:D36)","v":0}]
[]
["Kapitola 6. INVESTIČNÍ NÁKLADY - pořízení nebo zhodnocení dlouhodobého majetku"]
["6.1."]
["6.2."]
["6.3."]
["Součet Kapitola 6.",{"$f":"SUM(B40:B42)","v":0},null,{"$f":"SUM(D40:D42)","v":0}]
[]
["Mezisoučet - Přímé projektové náklady",{"$f":"B13+B19+B25+B31+B37+B43","v":0},null,{"$f":"D13+D19+D25+D31+D37+D43","v":0}]
[]
["Kapitola 7. NEPŘÍMÉ PROJEKTOVÉ NÁKLADY"]
[null,null,null,{"$f":"IF(D45=0,\" \",IF(D47>0.05*D45,\"limit 5% u požadavku na financování nepřímých nákladů je překročen!\",\" \"))","v":" "}]
["CELKOVÉ PROJEKTOVÉ NÁKLADY",{"$f":"B45+B47","v":0},null,{"$f":"D45+D47","v":0}]
[null,{"$f":"IF(OR(Rozp_Zdroj_Tem!D24=0,Rozp_Zdroj_Tem!D9=Rozp_Zdroj_Tem!D24),\" \",IF(B49=Rozp_Zdroj_Tem!D24,\" \",\"suma Celkových projektových nákladů musí odpovídat sumě Celkových zdrojů\"))","v":" "}]

{"sheet":"Rozp_Zdroj_Tem","index":13,"n_rows":31,"n_cols":6,"rows_kept":31,"cut":false,"hidden":true,"merged":[[28,0,28,4],[29,0,29,4],[30,0,30,4],[0,0,0,4]]}
["POMOZTE DĚTEM!"]
["Rozpočet - Zdroje"]
[]
["Číslo projektu:",{"$f":"Rozp_Zam_Tem!D4","v":0}]
["Název projektu:",{"$f":"Rozp_Zam_Tem!D5","v":0}]
["Název organizace:",{"$f":"Rozp_Zam_Tem!D6","v":0}]
[]
["                                                ZDROJE FINANCOVÁNÍ PROJEKTOVÝCH NÁKLADŮ",null,null,"Suma","%"]
["Nadační příspěvek NROS - Pomozte dětem!",null,null,{"$f":"Rozp_Strukt_Tem!D49","v":0},{"$f":"IF($D$24=0, ,D9/$D$24)","v":0},{"$f":"IF(D9=0,\" \",IF(OR(D9>1000000,D9<500000),\"výše NP se může pohybovat v rozmezí od 500.000 do 1.000.000 Kč - viz Příručka\",\" \"))","v":" "}]
["Jiné příspěvky od donátorů",null,null,{"$f":"SUM(D11:D21)","v":0},{"$f":"IF($D$24=0, ,D10/$D$24)","v":0},{"$f":"IF(OR(D24=0,D24=D9),\" \",IF(D9<0.3*D24,\"požadovaný NP nesmí být nižší než 30% celkových nákladů projektu - viz Pokyny\",\" \"))","v":" "}]
["Poskytovatel","Typ příspěvku","Stav žádosti"]
[]
[]
[]
[]
[]
[]
[]
[]
[]
[]
["Vlastní prostředky žadatele",null,null,null,{"$f":"IF($D$24=0, ,D22/$D$24)","v":0}]
["Přímé výnosy projektu",null,null,null,{"$f":"IF($D$24=0, ,D23/$D$24)","v":0}]
["CELKOVÉ ZDROJE",null,null,{"$f":"D9+D10+D22+D23","v":0},null,{"$f":"IF(OR(D24=0,D24=D9),\" \",IF(D24=Rozp_Strukt_Tem!B49,\" \",\"suma Celkových zdrojů musí odpovídat sumě Celkových projektových nákladů\"))","v":" "}]
[]
[]
[]
["Stav žádosti\nzvolte jednu z možností (A, B nebo C):"]
["A - schválená žádost (použijte v případě, že donátor již danou žádost schválil a finanční prostředky z daného zdroje jsou tedy v zásadě garantovány)"]
["B - podaná žádost (použijte v případě, že danou žádost jste již podali, tato prochází výběrovým řízením donátora, ale výsledek řízení vám dosud není znám)\n"]
["C - žádost zatím nebyla podána (použijte v případě, že se tuto žádost teprve chystáte podat)"]

{"sheet":"Kontrola_Rocni","index":14,"n_rows":16,"n_cols":2,"rows_kept":16,"cut":false,"hidden":true,"merged":[[0,0,0,1],[1,0,1,1]]}
["POMOZTE DĚTEM"]
["KONTROLA SOULADU A KONZISTENTNOSTI ROZPOČTU"]
[]
[]
[]
["1.","Výše požadavku na financování nepřímých projektových nákladů odpovídá stanoveným limitům"]
[null,{"$f":"IF(Rozp_Strukt_Rocni!E43>(0.05*Rozp_Strukt_Rocni!E41),\"NESOULAD\",\"OK\")","v":"OK"}]
[null,{"$f":"IF(Rozp_Strukt_Rocni!E43>(0.05*Rozp_Strukt_Rocni!E41),\"Výše požadavku překračuje limit 5% z částky požadované na financování přímých projektových nákladů. Snižte částku požadavku na financování z NP u Kapitoly 7 v sloupci E listu Rozpočet_Struktura.\",\"\")","v":""}]
[]
["2.","Výše požadovaného nadačního příspěvku odpovídá stanoveným limitům"]
[null,{"$f":"IF(Rozp_Zdroj_Rocni!D9>350000,\"NESOULAD\",\"OK\")","v":"OK"}]
[null,{"$f":"IF(Rozp_Zdroj_Rocni!D9>350000,\"Výše NP přesahuje limit 350.000 Kč. Snižte částku požadavku na financování z NP u vhodných položek v sloupci E listu Rozpočet_Struktura.\",\"\")","v":""}]
[]
["3.","Suma Celkových projektových nákladů odpovídá sumě Celkových zdrojů"]
[null,{"$f":"IF(Rozp_Strukt_Rocni!C45=Rozp_Zdroj_Rocni!D24,\"OK\",\"NESOULAD\")","v":"OK"}]
[null,{"$f":"IF(Rozp_Strukt_Rocni!C45=Rozp_Zdroj_Rocni!D24,\"\",\"Suma projektových nákladů se neshoduje se sumou zdrojů. Upravte výši zdrojů spolufinancování v sloupci D listu Rozpočet_Zdroje anebo zvažte nastavení aktivit s dopadem na výši projektových nákladů v sloupci C listu Rozpočet_Struktura.\")","v":""}]

{"sheet":"Hlavicka_Ind","index":15,"n_rows":37,"n_cols":13,"rows_kept":37,"cut":false,"hidden":true,"merged":[[36,10,36,12],[0,0,0,12],[4,10,4,12],[18,1,18,12],[21,1,21,12],[24,1,24,12],[27,1,27,12],[5,10,5,12],[5,8,5,9],[28,1,28,12],[31,1,31,12]]}
["POMOZTE DĚTEM"]
[null,null,null,null,null,null,null,null,null,null,null,20,"19. ročník"]
["LIST NEVYPLŇOVAT!",null,null,null,null,null,null,null,null,"Druh projektu:",null,null,"Individuální"]
[]
[null,null,null,null,null,null,null,null,null,"Číslo projektu NROS:"]
[null,null,null,null,null,null,null,null,"Unikátní kód:",null,{"$f":"Individualni!M48+Rozp_Zam_Ind!J33+Rozp_Zam_Ind!K33","v":1141}]
["1.","Název organizace",null,null,{"$f":"Zadatel!E6","v":0}]
["2.","IČ",null,null,{"$f":"Zadatel!E8","v":0}]
["3.","Název projektu",null,null,{"$f":"Individualni!B5","v":0}]
[]
["4.","Kontaktní osoba"]
[null,null,"Jméno osoby",null,{"$f":"Individualni!E7","v":0}]
[null,null,"Telefon",null,{"$f":"Individualni!E9","v":0}]
[null,null,"E-mail",null,{"$f":"Individualni!E10","v":0}]
["5.","Web",null,null,{"$f":"Zadatel!E40","v":0}]
[]
["Souhlasy a prohlášení"]
[null,"Souhlas se zveřejněním projektu"]
[null,"Souhlasím s poskytnutím veškerých informací (vyjma osobních dat) týkajících se projektové žádosti, včetně jejích příloh veřejnosti."]
[]
[null,"Souhlas se zpracováním osobních údajů"]
[null,"Souhlasím se zařazením poskytnutých osobních údajů do grantové databáze Nadace rozvoje občanské společnosti a jejich dalším zpracováním Nadací za účelem vyhodnocení žádosti o nadační příspěvek, a to do odvolání mého souhlasu. Veškerá osobní data budou chráněna v souladu se zněním zákona č. 101/2000 Sb. o ochraně osobních údajů. NROS byla zaregistrována na Úřadě pro ochranu osobních údajů pod číslem 00000883/001 dne 14. 2. 2001."]
[]
[null,"Souhlas s podmínkami programu"]
[null,"Souhlasím s termíny a podmínkami platnými pro veřejné výběrové řízení Pomozte dětem , jež jsou uvedeny v Příručce k veřejnému výběrovému řízení 18. ročníku sbírkového projektu Pomozte dětem."]
[]
[null,"Čestné prohlášení o žadateli"]
[null,"Na majetek žádající NNO nebyl prohlášen konkurz, nebylo potvrzené nucené vyrovnání, eventuálně nebyl zamítnut návrh na prohlášení pro nedostatek majetku. Proti žádající NNO není veden výkon rozhodnutí, není v úpadku nebo v likvidaci dle zákona č. 182/2006 Sb., o úpadku a způsobech jeho řešení (insolvenční zákon)."]
[null,"Žádající NNO má splněné veškeré závazky související s úhradou příspěvku zdravotního pojištění, sociálního zabezpečení a daňovými odvody vyplývajícími z právních předpisů."]
[]
[null,"Čestné prohlášení o projektu"]
[null,"Prohlašuji, že všechny informace poskytnuté v projektové žádosti jsou pravdivé."]
[]
[]
[]
[]
[null,null,null,null,null,null,null,null,null,null,{"$f":"Zadatel!E12","v":0}]

{"sheet":"Individualni","index":16,"n_rows":48,"n_cols":15,"rows_kept":48,"cut":false,"hidden":true,"merged":[[42,5,42,12],[43,5,43,12],[44,5,44,12],[45,5,45,12],[40,5,40,12],[41,5,41,12],[27,1,27,12],[31,1,31,12],[33,1,33,12],[35,1,35,12],[25,4,25,12],[29,1,29,12],[24,4,24,12],[0,0,0,12],[4,1,4,12],[11,4,11,12],[12,4,12,12],[18,4,18,12],[19,4,19,12],[6,4,6,12],[7,4,7,12],[8,4,8,12],[9,4,9,12]]}
["POMOZTE DĚTEM "]
[null,null,null,null,null,null,null,null,null,null,"Individuální projekt"]
["Identifikace projektu"]
["1.","Název projektu"]
[]
["2.","Kontaktní osoba",null,null,null,null,null,null,null,null,null,null,null,null,"CZ 01 – Praha"]
[null,null,"Jméno osoby",null,null,null,null,null,null,null,null,null,null,null,"CZ 02 – Střední Čechy"]
[null,null,"Pracovní pozice",null,null,null,null,null,null,null,null,null,null,null,"CZ 03 - Jihozápad (Jihočeský, Plzeňský kraj)"]
[null,null,"Telefon",null,null,null,null,null,null,null,null,null,null,null,"CZ 04 – Severozápad (Ústecký, Karlovarský kraj)"]
[null,null,"E-mail",null,null,null,null,null,null,null,null,null,null,null,"CZ 05 - Severovýchod (Liberecký, Královehradecký, Pardubický kraj)"]
["Místo realizace",null,null,null,null,null,null,null,null,null,null,null,null,null,"CZ 06 - Jihovýchod (Vysočina, Jihomoravský kraj)"]
["1.","Region realizace (NUTSII)",null,null,null,null,null,null,null,null,null,null,null,null,"CZ 07 - Střední Morava (Olomoucký, Zlínský kraj)"]
["2.","Místo realizace (obec)",null,null,null,null,null,null,null,null,null,null,null,null,"CZ 08 - Moravskoslezsko (Moravskoslezský kraj)"]
[]
["Rozpočet, harmonogram a oblast projektu",null,null,null,null,null,null,null,null,null,null,null,null,null,"výchovnými a vývojovými problémy – VVP"]
["1.","Celkové náklady",null,null,{"$f":"Rozp_Strukt_Ind!C77","v":0},"Kč",null,null,null,null,null,null,null,null,"životem mimo vlastní rodinu – ŽMR"]
["2.","Požadovaná částka",null,null,{"$f":"Rozp_Strukt_Ind!E77","v":0},"Kč",null,null,null,null,null,null,null,null,"týráním, zneužíváním a zanedbáváním - TZ"]
["3.","Doba realizace projektu",null,null,null,"měsíců",null,null,null,null,null,null,null,null,"tělesným, duševním nebo smyslovým postižením - ZP"]
["4.","Převažující oblast projektu",null,null,null,null,null,null,null,null,null,null,null,null,"drogovou či jinou závislostí - DZ"]
[null,null,"pokud jiné tak",null,null,null,null,null,null,null,null,null,null,null,"jinými nepříznivými životními podmínkami – JP"]
["Identifikace cílové skupiny"]
["1.","Počet dětí",null,"Věk","0-5","6-10","11-14","15-18","Celkem",null,null,null,null,null,"osobní asistence OA"]
[null,null,null,"Počet",null,null,null,null,{"$f":"SUM(E23:H23)","v":0},null,null,null,null,null,"odlehčovací služby OS"]
[null,null,null,null,null,null,null,null,null,null,null,null,null,null,"stacionáře a speciální školní zařízení SŠ"]
["2.","Čím jsou děti ohrožené",null,null,null,null,null,null,null,null,null,null,null,null,"raná péče RP "]
[null,null,"pokud jiné tak",null,null,null,null,null,null,null,null,null,null,null,"azylové domy AD"]
[3,"Popis výchozí situace",null,null,null,null,null,null,null,null,null,"Počet znaků:",{"$f":"500-LEN(B28)","v":500},null,"nízkoprahová zařízení pro děti a mládež NZDM"]
[null,null,null,null,null,null,null,null,null,null,null,null,null,null,"sociálně terapeutické služby STS"]
["4.","Cíl projektu",null,null,null,null,null,null,null,null,null,"Počet znaků:",{"$f":"500-LEN(B30)","v":500},null,"náhradní rodinná péče NRP"]
[]
["5.","Pozitivní změna v životě dítěte",null,null,null,null,null,null,null,null,null,"Počet znaků:",{"$f":"500-LEN(B32)","v":500}]
[null,null,null,null,null,null,null,null,null,null,null,null,null,null,"individuální podpora IP"]
["6.","Spolupráce mezi NNO a rodinou",null,null,null,null,null,null,null,null,null,"Počet znaků:",{"$f":"500-LEN(B34)","v":500},null,"jiné"]
[]
["7.","Možnost získání podpory od jiných subjektů",null,null,null,null,null,null,null,null,null,"Počet znaků:",{"$f":"500-LEN(B36)","v":500}]
[]
["8.","Žádáte o prostředky ze sbírky Pomozte dětem poprvé? "]
["9.","Zúčastnil se zástupce vaší organizace letošního semináře pro žadatele z veřejné sbírky Pomozte dětem?"]
[]
["Identifikační údaje dítěte/dětí"]
["1.","Jméno a příjmení dítěte"]
["2.","Adresa bydliště"]
["3.","Rodné číslo dítěte"]
["4.","Jméno a příjmení zákonného zástupce"]
["5.","Telefon na zákonného zástupce"]
["6.","E-mail na zákonného zástupce"]
[]
[null,null,null,null,null,null,null,null,null,null,null,"Kontrolní součet:",{"$f":"Checksum(B5)+Checksum(E12:M13)+Checksum(E16:E17)+Checksum(E18:M20)+Checksum(E23:H23)+Checksum(E25:M26)+Checksum(B28)+Checksum(B32)+Checksum(B34)+Checksum(B36)+Checksum(L37:L38)+Checksum(F41:M46)","v":1141}]

{"sheet":"Rozp_Zam_Ind","index":17,"n_rows":33,"n_cols":11,"rows_kept":33,"cut":false,"hidden":false,"merged":[[0,0,0,10],[3,3,3,10],[4,3,4,10],[5,3,5,10]]}
["POMOZTE DĚTEM"]
["Rozpočet - Zaměstnanci"]
[]
[null,null,"Číslo projektu:",{"$f":"Hlavicka_Ind!K5","v":0}]
[null,null,"Název projektu:",{"$f":"Individualni!B5","v":0}]
[null,null,"Název organizace:",{"$f":"Zadatel!E6","v":0}]
[]
["Zaměstnanci na pracovní poměr:"]
["ID","Pozice v projektovém týmu","Jméno a příjmení","Dosaž. vzdělání","Doba odborné praxe (počet let)","Měsíční hrubá mzda\npro plný úvazek","Měsíční superhrubá mzda\npro plný úvazek","Úvazek na projektu","Počet měsíců v projektu","Mzdové náklady vztahující se k projektu","Požadavek na financování z nadačního příspěvku"]
[1,null,null,null,null,null,null,null,null,{"$f":"ROUND(G10*H10*I10,0)","v":0}]
[{"$f":"A10+1","v":2},null,null,null,null,null,null,null,null,{"$f":"ROUND(G11*H11*I11,0)","v":0}]
[{"$f":"A11+1","v":3},null,null,null,null,null,null,null,null,{"$f":"ROUND(G12*H12*I12,0)","v":0}]
[{"$f":"A12+1","v":4},null,null,null,null,null,null,null,null,{"$f":"ROUND(G13*H13*I13,0)","v":0}]
[{"$f":"A13+1","v":5},null,null,null,null,null,null,null,null,{"$f":"ROUND(G14*H14*I14,0)","v":0}]
[]
["Zaměstnanci na DPČ:"]
["ID","Pozice v projektovém týmu","Jméno a příjmení","Dosaž. vzdělání","Doba odborné praxe (počet let)","Měsíční hrubá mzda\npro plný úvazek","Měsíční superhrubá mzda\npro plný úvazek","Úvazek na projektu","Počet měsíců v projektu","Mzdové náklady vztahující se k projektu","Požadavek na financování z nadačního příspěvku"]
[1,null,null,null,null,null,null,null,null,{"$f":"ROUND(G18*H18*I18,0)","v":0}]
[{"$f":"A18+1","v":2},null,null,null,null,null,null,null,null,{"$f":"ROUND(G19*H19*I19,0)","v":0}]
[{"$f":"A19+1","v":3},null,null,null,null,null,null,null,null,{"$f":"ROUND(G20*H20*I20,0)","v":0}]
[{"$f":"A20+1","v":4},null,null,null,null,null,null,null,null,{"$f":"ROUND(G21*H21*I21,0)","v":0}]
[{"$f":"A21+1","v":5},null,null,null,null,null,null,null,null,{"$f":"ROUND(G22*H22*I22,0)","v":0}]
[]
["Zaměstnanci na DPP:"]
["ID","Pozice v projektovém týmu","Jméno a příjmení","Dosaž. vzdělání","Doba odborné praxe (počet let)","Hodinová sazba","Počet hodin v projektu","Případné odvody",null,"Mzdové náklady vztahující se k projektu","Požadavek na financování z nadačního příspěvku"]
[1,null,null,null,null,null,null,null,null,{"$f":"ROUND((F26*G26)+H26,0)","v":0}]
[{"$f":"A26+1","v":2},null,null,null,null,null,null,null,null,{"$f":"ROUND((F27*G27)+H27,0)","v":0}]
[{"$f":"A27+1","v":3},null,null,null,null,null,null,null,null,{"$f":"ROUND((F28*G28)+H28,0)","v":0}]
[{"$f":"A28+1","v":4},null,null,null,null,null,null,null,null,{"$f":"ROUND((F29*G29)+H29,0)","v":0}]
[{"$f":"A29+1","v":5},null,null,null,null,null,null,null,null,{"$f":"ROUND((F30*G30)+H30,0)","v":0}]
[]
[]
[null,null,null,null,null,null,null,"Kontrolní součet:",null,{"$f":"SUM(J9:J31)","v":0},{"$f":"SUM(K9:K31)","v":0}]

{"sheet":"Rozp_Strukt_Ind","index":18,"n_rows":77,"n_cols":7,"rows_kept":77,"cut":false,"hidden":false,"merged":[[0,0,0,4],[3,2,3,4],[4,2,4,4],[5,2,5,4]]}
["POMOZTE DĚTEM"]
["Rozpočet - Struktura"]
[]
[null,"Číslo projektu:"]
[null,"Název projektu:"]
[null,"Název organizace:"]
[]
["Číslo položky","PROJEKTOVÉ NÁKLADY","Výše projektových nákladů","Komentář","Požadavek na financování z nadačního příspěvku"]
["Kapitola 1. MZDOVÉ NÁKLADY"]
["1. 1.",{"$f":"Rozp_Zam_Ind!B10 & \" (\" & Rozp_Zam_Ind!C10 & \")\"","v":" ()"},{"$f":"Rozp_Zam_Ind!J10","v":0},{"$f":" \"PP; úvazek: \" & Rozp_Zam_Ind!H10 & \"; doba: \" & Rozp_Zam_Ind!I10 & \" měs.\"","v":"PP; úvazek: ; doba:  měs."},{"$f":"Rozp_Zam_Ind!K10","v":0},null,{"$f":"IF(E10>C10,\"Hodnota v sloupci E nesmí být vyšší než hodnota v sloupci C\",\"\")","v":""}]
["1. 2.",{"$f":"Rozp_Zam_Ind!B11 & \" (\" & Rozp_Zam_Ind!C11 & \")\"","v":" ()"},{"$f":"Rozp_Zam_Ind!J11","v":0},{"$f":" \"PP; úvazek: \" & Rozp_Zam_Ind!H11 & \"; doba: \" & Rozp_Zam_Ind!I11 & \" měs.\"","v":"PP; úvazek: ; doba:  měs."},{"$f":"Rozp_Zam_Ind!K11","v":0},null,{"$f":"IF(E11>C11,\"Hodnota v sloupci E nesmí být vyšší než hodnota v sloupci C\",\"\")","v":""}]
["1. 3.",{"$f":"Rozp_Zam_Ind!B12 & \" (\" & Rozp_Zam_Ind!C12 & \")\"","v":" ()"},{"$f":"Rozp_Zam_Ind!J12","v":0},{"$f":" \"PP; úvazek: \" & Rozp_Zam_Ind!H12 & \"; doba: \" & Rozp_Zam_Ind!I12 & \" měs.\"","v":"PP; úvazek: ; doba:  měs."},{"$f":"Rozp_Zam_Ind!K12","v":0},null,{"$f":"IF(E12>C12,\"Hodnota v sloupci E nesmí být vyšší než hodnota v sloupci C\",\"\")","v":""}]
["1. 4.",{"$f":"Rozp_Zam_Ind!B13 & \" (\" & Rozp_Zam_Ind!C13 & \")\"","v":" ()"},{"$f":"Rozp_Zam_Ind!J13","v":0},{"$f":" \"PP; úvazek: \" & Rozp_Zam_Ind!H13 & \"; doba: \" & Rozp_Zam_Ind!I13 & \" měs.\"","v":"PP; úvazek: ; doba:  měs."},{"$f":"Rozp_Zam_Ind!K13","v":0},null,{"$f":"IF(E13>C13,\"Hodnota v sloupci E nesmí být vyšší než hodnota v sloupci C\",\"\")","v":""}]
["1. 5.",{"$f":"Rozp_Zam_Ind!B14 & \" (\" & Rozp_Zam_Ind!C14 & \")\"","v":" ()"},{"$f":"Rozp_Zam_Ind!J14","v":0},{"$f":" \"PP; úvazek: \" & Rozp_Zam_Ind!H14 & \"; doba: \" & Rozp_Zam_Ind!I14 & \" měs.\"","v":"PP; úvazek: ; doba:  měs."},{"$f":"Rozp_Zam_Ind!K14","v":0},null,{"$f":"IF(E14>C14,\"Hodnota v sloupci E nesmí být vyšší než hodnota v sloupci C\",\"\")","v":""}]
["1. 6.",{"$f":"Rozp_Zam_Ind!B18 & \" (\" & Rozp_Zam_Ind!C18 & \")\"","v":" ()"},{"$f":"Rozp_Zam_Ind!J18","v":0},{"$f":" \"DPČ; úvazek: \" & Rozp_Zam_Ind!H18 & \"; doba: \" & Rozp_Zam_Ind!I18 & \" měs.\"","v":"DPČ; úvazek: ; doba:  měs."},{"$f":"Rozp_Zam_Ind!K18","v":0},null,""]
["1. 7.",{"$f":"Rozp_Zam_Ind!B19 & \" (\" & Rozp_Zam_Ind!C19 & \")\"","v":" ()"},{"$f":"Rozp_Zam_Ind!J19","v":0},{"$f":" \"DPČ; úvazek: \" & Rozp_Zam_Ind!H19 & \"; doba: \" & Rozp_Zam_Ind!I19 & \" měs.\"","v":"DPČ; úvazek: ; doba:  měs."},{"$f":"Rozp_Zam_Ind!K19","v":0},null,{"$f":"IF(E16>C16,\"Hodnota v sloupci E nesmí být vyšší než hodnota v sloupci C\",\"\")","v":""}]
["1. 8.",{"$f":"Rozp_Zam_Ind!B20 & \" (\" & Rozp_Zam_Ind!C20 & \")\"","v":" ()"},{"$f":"Rozp_Zam_Ind!J20","v":0},{"$f":" \"DPČ; úvazek: \" & Rozp_Zam_Ind!H20 & \"; doba: \" & Rozp_Zam_Ind!I20 & \" měs.\"","v":"DPČ; úvazek: ; doba:  měs."},{"$f":"Rozp_Zam_Ind!K20","v":0},null,{"$f":"IF(E17>C17,\"Hodnota v sloupci E nesmí být vyšší než hodnota v sloupci C\",\"\")","v":""}]
["1. 9.",{"$f":"Rozp_Zam_Ind!B21 & \" (\" & Rozp_Zam_Ind!C21 & \")\"","v":" ()"},{"$f":"Rozp_Zam_Ind!J21","v":0},{"$f":" \"DPČ; úvazek: \" & Rozp_Zam_Ind!H21 & \"; doba: \" & Rozp_Zam_Ind!I21 & \" měs.\"","v":"DPČ; úvazek: ; doba:  měs."},{"$f":"Rozp_Zam_Ind!K21","v":0},null,{"$f":"IF(E18>C18,\"Hodnota v sloupci E nesmí být vyšší než hodnota v sloupci C\",\"\")","v":""}]
["1. 10.",{"$f":"Rozp_Zam_Ind!B22 & \" (\" & Rozp_Zam_Ind!C22 & \")\"","v":" ()"},{"$f":"Rozp_Zam_Ind!J22","v":0},{"$f":" \"DPČ; úvazek: \" & Rozp_Zam_Ind!H22 & \"; doba: \" & Rozp_Zam_Ind!I22 & \" měs.\"","v":"DPČ; úvazek: ; doba:  měs."},{"$f":"Rozp_Zam_Ind!K22","v":0},null,{"$f":"IF(E19>C19,\"Hodnota v sloupci E nesmí být vyšší než hodnota v sloupci C\",\"\")","v":""}]
["1. 11.",{"$f":"Rozp_Zam_Ind!B26 & \" (\" & Rozp_Zam_Ind!C26 & \")\"","v":" ()"},{"$f":"Rozp_Zam_Ind!J26","v":0},{"$f":" \"DPP; počet hodin: \" & Rozp_Zam_Ind!G26","v":"DPP; počet hodin: "},{"$f":"Rozp_Zam_Ind!K26","v":0},null,""]
["1. 12.",{"$f":"Rozp_Zam_Ind!B27 & \" (\" & Rozp_Zam_Ind!C27 & \")\"","v":" ()"},{"$f":"Rozp_Zam_Ind!J27","v":0},{"$f":" \"DPP; počet hodin: \" & Rozp_Zam_Ind!G27","v":"DPP; počet hodin: "},{"$f":"Rozp_Zam_Ind!K27","v":0},null,{"$f":"IF(E21>C21,\"Hodnota v sloupci E nesmí být vyšší než hodnota v sloupci C\",\"\")","v":""}]
["1. 13.",{"$f":"Rozp_Zam_Ind!B28 & \" (\" & Rozp_Zam_Ind!C28 & \")\"","v":" ()"},{"$f":"Rozp_Zam_Ind!J28","v":0},{"$f":" \"DPP; počet hodin: \" & Rozp_Zam_Ind!G28","v":"DPP; počet hodin: "},{"$f":"Rozp_Zam_Ind!K28","v":0},null,{"$f":"IF(E22>C22,\"Hodnota v sloupci E nesmí být vyšší než hodnota v sloupci C\",\"\")","v":""}]
["1. 14.",{"$f":"Rozp_Zam_Ind!B29 & \" (\" & Rozp_Zam_Ind!C29 & \")\"","v":" ()"},{"$f":"Rozp_Zam_Ind!J29","v":0},{"$f":" \"DPP; počet hodin: \" & Rozp_Zam_Ind!G29","v":"DPP; počet hodin: "},{"$f":"Rozp_Zam_Ind!K29","v":0},null,{"$f":"IF(E23>C23,\"Hodnota v sloupci E nesmí být vyšší než hodnota v sloupci C\",\"\")","v":""}]
["1. 15.",{"$f":"Rozp_Zam_Ind!B30 & \" (\" & Rozp_Zam_Ind!C30 & \")\"","v":" ()"},{"$f":"Rozp_Zam_Ind!J30","v":0},{"$f":" \"DPP; počet hodin: \" & Rozp_Zam_Ind!G30","v":"DPP; počet hodin: "},{"$f":"Rozp_Zam_Ind!K30","v":0},null,{"$f":"IF(E24>C24,\"Hodnota v sloupci E nesmí být vyšší než hodnota v sloupci C\",\"\")","v":""}]
["1. 4."]
[null,"Součet Kapitola 1.",{"$f":"SUM(C10:C25)","v":0},null,{"$f":"SUM(E10:E25)","v":0}]
[]
["Kapitola 2. VYBAVENÍ A SPOTŘEBNÍ MATERIÁL"]
["2.1.",null,null,null,null,null,{"$f":"IF(E29>C29,\"Hodnota v sloupci E nesmí být vyšší než hodnota v sloupci C\",\"\")","v":""}]
["2.2.",null,null,null,null,null,{"$f":"IF(E30>C30,\"Hodnota v sloupci E nesmí být vyšší než hodnota v sloupci C\",\"\")","v":""}]
["2.3.",null,null,null,null,null,{"$f":"IF(E31>C31,\"Hodnota v sloupci E nesmí být vyšší než hodnota v sloupci C\",\"\")","v":""}]
["2.4.",null,null,null,null,null,{"$f":"IF(E32>C32,\"Hodnota v sloupci E nesmí být vyšší než hodnota v sloupci C\",\"\")","v":""}]
["2.5.",null,null,null,null,null,{"$f":"IF(E33>C33,\"Hodnota v sloupci E nesmí být vyšší než hodnota v sloupci C\",\"\")","v":""}]
[]
[null,"Součet Kapitola 2.",{"$f":"SUM(C29:C34)","v":0},null,{"$f":"SUM(E29:E34)","v":0}]
[]
["Kapitola 3. CESTOVNÉ - ZAMĚSTNANCI"]
["3.1.",null,null,null,null,null,{"$f":"IF(E38>C38,\"Hodnota v sloupci E nesmí být vyšší než hodnota v sloupci C\",\"\")","v":""}]
["3.2.",null,null,null,null,null,{"$f":"IF(E39>C39,\"Hodnota v sloupci E nesmí být vyšší než hodnota v sloupci C\",\"\")","v":""}]
["3.3.",null,null,null,null,null,{"$f":"IF(E40>C40,\"Hodnota v sloupci E nesmí být vyšší než hodnota v sloupci C\",\"\")","v":""}]
["3.4.",null,null,null,null,null,{"$f":"IF(E41>C41,\"Hodnota v sloupci E nesmí být vyšší než hodnota v sloupci C\",\"\")","v":""}]
["3.5.",null,null,null,null,null,{"$f":"IF(E42>C42,\"Hodnota v sloupci E nesmí být vyšší než hodnota v sloupci C\",\"\")","v":""}]
[]
[null,"Součet Kapitola 3.",{"$f":"SUM(C38:C43)","v":0},null,{"$f":"SUM(E38:E43)","v":0}]
[]
["Kapitola 4. SLUŽBY PRO CÍLOVÉ SKUPINY"]
["4.1.",null,null,null,null,null,{"$f":"IF(E47>C47,\"Hodnota v sloupci E nesmí být vyšší než hodnota v sloupci C\",\"\")","v":""}]
["4.2.",null,null,null,null,null,{"$f":"IF(E48>C48,\"Hodnota v sloupci E nesmí být vyšší než hodnota v sloupci C\",\"\")","v":""}]
["4.3.",null,null,null,null,null,{"$f":"IF(E49>C49,\"Hodnota v sloupci E nesmí být vyšší než hodnota v sloupci C\",\"\")","v":""}]
["4.4.",null,null,null,null,null,{"$f":"IF(E50>C50,\"Hodnota v sloupci E nesmí být vyšší než hodnota v sloupci C\",\"\")","v":""}]
["4.5.",null,null,null,null,null,{"$f":"IF(E51>C51,\"Hodnota v sloupci E nesmí být vyšší než hodnota v sloupci C\",\"\")","v":""}]
[]
[null,"Součet Kapitola 4.",{"$f":"SUM(C47:C52)","v":0},null,{"$f":"SUM(E47:E52)","v":0}]
[]
["Kapitola 5. OSTATNÍ SLUŽBY"]
["5.1.",null,null,null,null,null,{"$f":"IF(E56>C56,\"Hodnota v sloupci E nesmí být vyšší než hodnota v sloupci C\",\"\")","v":""}]
["5.2.",null,null,null,null,null,{"$f":"IF(E57>C57,\"Hodnota v sloupci E nesmí být vyšší než hodnota v sloupci C\",\"\")","v":""}]
["5.3.",null,null,null,null,null,{"$f":"IF(E58>C58,\"Hodnota v sloupci E nesmí být vyšší než hodnota v sloupci C\",\"\")","v":""}]
["5.4.",null,null,null,null,null,{"$f":"IF(E59>C59,\"Hodnota v sloupci E nesmí být vyšší než hodnota v sloupci C\",\"\")","v":""}]
["5.5.",null,null,null,null,null,{"$f":"IF(E60>C60,\"Hodnota v sloupci E nesmí být vyšší než hodnota v sloupci C\",\"\")","v":""}]
[]
[null,"Součet Kapitola 5.",{"$f":"SUM(C56:C61)","v":0},null,{"$f":"SUM(E56:E61)","v":0}]
[]
["Kapitola 6. INVESTIČNÍ NÁKLADY - pořízení nebo zhodnocení dlouhodobého majetku"]
["6.1.",null,null,null,null,null,{"$f":"IF(E65>C65,\"Hodnota v sloupci E nesmí být vyšší než hodnota v sloupci C\",\"\")","v":""}]
["6.2.",null,null,null,null,null,{"$f":"IF(E66>C66,\"Hodnota v sloupci E nesmí být vyšší než hodnota v sloupci C\",\"\")","v":""}]
["6.3.",null,null,null,null,null,{"$f":"IF(E67>C67,\"Hodnota v sloupci E nesmí být vyšší než hodnota v sloupci C\",\"\")","v":""}]
["6.4.",null,null,null,null,null,{"$f":"IF(E68>C68,\"Hodnota v sloupci E nesmí být vyšší než hodnota v sloupci C\",\"\")","v":""}]
["6.5.",null,null,null,null,null,{"$f":"IF(E69>C69,\"Hodnota v sloupci E nesmí být vyšší než hodnota v sloupci C\",\"\")","v":""}]
[]
[null,"Součet Kapitola 6.",{"$f":"SUM(C65:C70)","v":0},null,{"$f":"SUM(E65:E70)","v":0}]
[]
[null,"Mezisoučet - Přímé projektové náklady",{"$f":"C26+C35+C44+C53+C62+C71","v":0},null,{"$f":"E26+E35+E44+E53+E62+E71","v":0}]
[]
["Kapitola 7. NEPŘÍMÉ PROJEKTOVÉ NÁKLADY",null,null,null,null,null,{"$f":"IF(E75>C75,\"Hodnota v sloupci E nesmí být vyšší než hodnota v sloupci C\",\"\")","v":""}]
[]
["CELKOVÉ PROJEKTOVÉ NÁKLADY",null,{"$f":"ROUND(C73+C75,0)","v":0},null,{"$f":"ROUND(E73+E75,0)","v":0}]

{"sheet":"Rozp_Zdroj_Ind","index":19,"n_rows":31,"n_cols":5,"rows_kept":31,"cut":false,"hidden":false,"merged":[[0,0,0,4],[28,0,28,4],[29,0,29,4],[30,0,30,4],[3,1,3,4],[4,1,4,4],[5,1,5,4]]}
["POMOZTE DĚTEM"]
["Rozpočet - Zdroje"]
[]
["Číslo projektu:"]
["Název projektu:"]
["Název organizace:"]
[]
["                                                ZDROJE FINANCOVÁNÍ PROJEKTOVÝCH NÁKLADŮ",null,null,"Suma","%"]
["Nadační příspěvek NROS - Pomozte dětem",null,null,{"$f":"Rozp_Strukt_Ind!E77","v":0},{"$f":"IF($D$24=0, ,D9/$D$24)","v":0}]
["Jiné příspěvky od donátorů",null,null,{"$f":"SUM(D12:D21)","v":0},{"$f":"IF($D$24=0, ,D10/$D$24)","v":0}]
["Poskytovatel","Typ příspěvku","Stav žádosti"]
[]
[]
[]
[]
[]
[]
[]
[]
[]
[]
["Vlastní prostředky žadatele",null,null,0,{"$f":"IF($D$24=0, ,D22/$D$24)","v":0}]
["Přímé výnosy projektu",null,null,0,{"$f":"IF($D$24=0, ,D23/$D$24)","v":0}]
["CELKOVÉ ZDROJE",null,null,{"$f":"D9+D10+D22+D23","v":0}]
[]
[]
[]
["Stav žádosti\nzvolte jednu z možností (A, B nebo C):"]
["A - žádost byla schválená (použijte v případě, že donátor již danou žádost schválil)"]
["B - žádost byla podána (použijte v případě, že danou žádost jste již podali, ale výsledek vám dosud není znám)\n"]
["C - žádost bude podána (použijte v případě, že danou žádost plánujete podat v čase relevantním k období realizace projektu)"]

{"sheet":"Kontrola_Ind","index":20,"n_rows":16,"n_cols":2,"rows_kept":16,"cut":false,"hidden":false,"merged":[[0,0,0,1],[1,0,1,1]]}
["POMOZTE DĚTEM"]
["KONTROLA SOULADU A KONZISTENTNOSTI ROZPOČTU"]
[]
[]
[]
["1.","Výše požadavku na financování nepřímých projektových nákladů odpovídá stanoveným limitům"]
[null,{"$f":"IF(Rozp_Strukt_Ind!E75>(0.05*Rozp_Strukt_Ind!E73),\"NESOULAD\",\"OK\")","v":"OK"}]
[null,{"$f":"IF(Rozp_Strukt_Ind!E75>(0.05*Rozp_Strukt_Ind!E73),\"Výše požadavku překračuje limit 5% z částky požadované na financování přímých projektových nákladů. Snižte částku požadavku na financování z NP u Kapitoly 7 v sloupci E listu Rozpočet_Struktura.\",\"\")","v":""}]
[]
["2.","Výše požadovaného nadačního příspěvku odpovídá stanoveným limitům"]
[null,{"$f":"IF(Rozp_Zdroj_Ind!D9>50000,\"NESOULAD\",\"OK\")","v":"OK"}]
[null,{"$f":"IF(Rozp_Zdroj_Ind!D9>50000,\"Výše NP přesahuje limit 35.000 Kč. Snižte částku požadavku na financování z NP u vhodných položek v sloupci E listu Rozpočet_Struktura.\",\"\")","v":""}]
[]
["3.","Suma Celkových projektových nákladů odpovídá sumě Celkových zdrojů"]
[null,{"$f":"IF(Rozp_Strukt_Ind!C77=Rozp_Zdroj_Ind!D24,\"OK\",\"NESOULAD\")","v":"OK"}]
[null,{"$f":"IF(Rozp_Strukt_Ind!C77=Rozp_Zdroj_Ind!D24,\"\",\"Suma projektových nákladů se neshoduje se sumou zdrojů. Upravte výši zdrojů spolufinancování v sloupci D listu Rozpočet_Zdroje anebo zvažte nastavení aktivit s dopadem na výši projektových nákladů v sloupci C listu Rozpočet_Struktura.\")","v":""}]

{"sheet":"DATA","index":21,"n_rows":2,"n_cols":66,"rows_kept":2,"cut":false,"hidden":true,"merged":[]}
["Org_name","Org_type","Org_IC","Org_Bank","Org_register_date","Org_statutar","Org_Report","Org_activity_a","Org_activity_b","Org_activity_c","Org_activity_d","Org_acredit_activity_a","Org_acredit_activity_b","Org_acredit_activity_c","Org_acredit_activity_d","Org_social_protection","Org_asociation","Org_adr_street","Org_adr_house_number","Org_adr_PSC","Org_adr_city","Org_post_adr_street","Org_post_adr_house_number","Org_post_adr_PSC","Org_post_adr_city","Org_WWW","Org_employes","Ogr_voluntaries","Org_accounting","Typ","Rocni_name","Rocni_ID","Rocni_Total","Rocni_Requested","Rocni_Kontakt_name","Rocni_Kontakt_tel","Rocni_Kontakt_mail","Rocni_nuts","Rocni_obec","Rocni_doba","Rocni_oblast","Rocni_deti","Tem_name","Tem_ID","Tem_Total","Tem_Requested","Tem_Kontakt_name","Tem_Kontakt_tel","Tem_Kontakt_mail","Tem_nuts","Tem_obec","Tem_doba","Tem_oblast","Tem_deti","Ind_name","Ind_ID","Ind_Total","Ind_Requested","Ind_Kontakt_name","Ind_Kontakt_tel","Ind_Kontakt_mail","Ind_nuts","Ind_obec","Ind_doba","Ind_oblast","Ind_deti"]
[{"$f":"Zadatel!E6","v":0},{"$f":"Zadatel!E7","v":"spolek"},{"$f":"Zadatel!E8","v":0},{"$f":"Zadatel!E9","v":0},{"$f":"Zadatel!E10","v":0},{"$f":"Zadatel!E12","v":0},{"$f":"Zadatel!E13","v":0},{"$f":"Zadatel!E16","v":0},{"$f":"Zadatel!E17","v":0},{"$f":"Zadatel!E18","v":0},{"$f":"Zadatel!E19","v":0},{"$f":"Zadatel!E21","v":0},{"$f":"Zadatel!E22","v":0},{"$f":"Zadatel!E23","v":0},{"$f":"Zadatel!E24","v":0},{"$f":"Zadatel!E25","v":0},{"$f":"Zadatel!E26","v":0},{"$f":"Zadatel!E29","v":0},{"$f":"Zadatel!E30","v":0},{"$f":"Zadatel!E31","v":0},{"$f":"Zadatel!E32","v":0},{"$f":"Zadatel!E34","v":0},{"$f":"Zadatel!E35","v":0},{"$f":"Zadatel!E36","v":0},{"$f":"Zadatel!E37","v":0},{"$f":"Zadatel!E38","v":0},{"$f":"Zadatel!E44","v":0},{"$f":"Zadatel!E45","v":0},{"$f":"Zadatel!E47","v":0},{"$f":"Uvod!J17","v":0},{"$f":"Rocni!B5","v":0},{"$f":"Hlavicka_Rocni!K5","v":0},{"$f":"Rocni!E20","v":0},{"$f":"Rocni!E21","v":0},{"$f":"Rocni!E11","v":0},{"$f":"Rocni!E13","v":0},{"$f":"Rocni!E14","v":0},{"$f":"Rocni!E16","v":0},{"$f":"Rocni!E17","v":0},{"$f":"Rocni!E22","v":0},{"$f":"Rocni!E23","v":0},{"$f":"Rocni!I27","v":0},{"$f":"Tematicky!B5","v":0},{"$f":"Hlavicka_Tem!K5","v":0},{"$f":"Tematicky!E22","v":0},{"$f":"Tematicky!E23","v":0},{"$f":"Tematicky!E13","v":0},{"$f":"Tematicky!E15","v":0},{"$f":"Tematicky!E16","v":0},{"$f":"Tematicky!E18","v":"CZ 03 - Jihozápad (Jihočeský, Plzeňský kraj)"},{"$f":"Tematicky!E19","v":0},{"$f":"Tematicky!E24","v":"1.1.2012 - 31.12.2013"},{"$f":"Tematicky!E30","v":"výchovnými a vývojovými problémy – VVP"},{"$f":"Tematicky!I28","v":0},{"$f":"Individualni!B5","v":0},{"$f":"Hlavicka_Ind!K5","v":0},{"$f":"Individualni!E16","v":0},{"$f":"Individualni!E17","v":0},{"$f":"Individualni!E7","v":0},{"$f":"Individualni!E9","v":0},{"$f":"Individualni!E10","v":0},{"$f":"Individualni!E12","v":0},{"$f":"Individualni!E13","v":0},{"$f":"Individualni!E18","v":0},{"$f":"Individualni!E25","v":0},{"$f":"Individualni!I23","v":0}]